bitfinex/quotes_SOLUSD_20241028
["timestamp","ask_amount","ask_price","bid_price","bid_amount"]
[1730156712012,16.87856796,178.94,178.9,20.0]
[1730156712375,16.87856796,178.95,178.9,20.0]
[1730156712872,16.87856796,178.96,178.9,16.87856796]
[1730156713173,16.87856796,178.96,178.91,20.0]
[1730156713487,16.87856796,178.94,178.88,16.87856796]
[1730156713685,16.87856796,178.95,178.89,16.87856796]
[1730156713892,16.87856796,178.94,178.88,16.87856796]
[1730156714075,16.87856796,178.93,178.88,16.87856796]
[1730156714261,16.87856796,178.93,178.87,16.87856796]
[1730156714464,16.87856796,178.93,178.88,16.87856796]
[1730156714980,16.87856796,178.93,178.89,20.0]
[1730156715766,5.5881,178.95,178.86,16.87856796]
[1730156715767,16.87856796,178.92,178.86,16.87856796]
[1730156716068,16.87856796,178.9,178.85,16.87856796]
[1730156716490,16.87856796,178.87,178.82,16.87856796]
[1730156717266,16.87856796,178.87,178.81,16.87856796]
[1730156717467,16.87856796,178.86,178.81,16.87856796]
[1730156717787,16.87856796,178.83,178.77,16.87856796]
[1730156717993,16.87856796,178.82,178.76,17.85182234]
[1730156718779,15.1768,178.85,178.79,16.87856796]
[1730156719086,6.0006,178.88,178.84,16.87856796]
[1730156719292,6.0006,178.88,178.85,16.87856796]
[1730156719466,6.0006,178.88,178.84,16.87856796]
[1730156720987,6.0006,178.88,178.85,3.23095043]
[1730156721185,6.0006,178.88,178.84,16.87856796]
[1730156722266,15.1768,178.9,178.85,16.87856796]
[1730156722472,15.1768,178.9,178.87,16.87856796]
[1730156722691,32.05536796,178.9,178.84,16.87856796]
[1730156723025,16.87856796,178.89,178.84,20.0]
[1730156723375,5.5894,178.91,178.84,16.87856796]
[1730156723690,16.87856796,178.9,178.85,16.87856796]
[1730156724683,16.87856796,178.9,178.84,16.87856796]
[1730156724887,46.24495196,178.91,178.84,16.87856796]
[1730156725073,40.65545196,178.91,178.85,16.87856796]
[1730156725273,6.5418,178.92,178.87,16.87856796]
[1730156725700,23.42036796,178.92,178.87,16.87856796]
[1730156725879,23.42036796,178.92,178.86,16.87856796]
[1730156726283,23.42036796,178.92,178.87,16.87856796]
[1730156727599,16.87856796,178.9,178.84,16.87856796]
[1730156727804,40.65545196,178.91,178.85,16.87856796]
[1730156730891,16.87856796,178.9,178.84,16.87856796]
[1730156731500,16.87856796,178.88,178.84,20.0]
[1730156731703,16.87856796,178.89,178.84,20.0]
[1730156732584,16.87856796,178.89,178.84,16.87856796]
[1730156732585,23.776884,178.89,178.84,16.87856796]
[1730156732783,6.5418,178.92,178.88,16.87856796]
[1730156733706,6.5418,178.92,178.79,0.1]
[1730156733707,6.5418,178.92,178.87,16.87856796]
[1730156734010,23.42036796,178.92,178.86,16.87856796]
[1730156734882,16.87856796,178.89,178.84,20.0]
[1730156738707,23.776884,178.89,178.85,16.87856796]
[1730156738912,23.776884,178.89,178.86,16.87856796]
[1730156739099,23.776884,178.9,178.86,16.87856796]
[1730156739692,23.776884,178.9,178.85,16.87856796]
[1730156740597,40.65545196,178.9,178.84,16.87856796]
[1730156740792,40.65545196,178.9,178.77,1.07322818]
[1730156740793,21.10864025,178.95,178.89,16.87856796]
[1730156740999,15.2791,178.95,178.93,16.87856796]
[1730156741208,6.6131,178.97,178.93,16.87856796]
[1730156741799,6.6131,178.97,178.92,16.87856796]
[1730156743110,33.38673296,178.99,178.93,16.87856796]
[1730156743313,16.87856796,178.98,178.91,16.87856796]
[1730156743484,16.87856796,178.98,178.92,20.0]
[1730156743682,22.095065,178.99,178.83,28.55576796]
[1730156743683,16.87856796,178.95,178.89,16.87856796]
[1730156743910,16.87856796,178.92,178.86,16.87856796]
[1730156744094,23.49166796,178.94,178.87,16.87856796]
[1730156744285,16.87856796,178.93,178.87,16.87856796]
[1730156745301,40.65545196,178.92,178.87,20.0]
[1730156745790,23.776884,178.93,178.9,16.87856796]
[1730156746005,29.07906796,178.98,178.92,16.87856796]
[1730156746205,6.6131,178.98,178.95,16.87856796]
[1730156746404,16.508165,178.99,178.95,16.87856796]
[1730156746611,0.610765,178.99,178.98,16.87856796]
[1730156747000,0.610765,178.99,178.98,36.87856796]
[1730156748516,0.610765,178.99,178.98,46.98796519]
[1730156750392,0.610765,178.99,178.92,27.08796519]
[1730156750393,0.610765,178.99,178.97,26.98796519]
[1730156751512,0.610765,178.99,178.97,20.0]
[1730156751716,0.610765,178.99,178.95,26.98796519]
[1730156752617,0.610765,178.99,178.97,26.98796519]
[1730156754695,0.610765,178.99,178.98,46.98796519]
[1730156755113,0.610765,178.99,178.98,26.98796519]
[1730156755720,0.610765,178.99,178.96,26.98796519]
[1730156756039,0.610765,178.99,178.95,26.98796519]
[1730156756040,6.197665,178.99,178.95,26.98796519]
[1730156756193,26.98796519,178.96,178.91,26.98796519]
[1730156756390,26.98796519,178.96,178.9,26.98796519]
[1730156756812,26.98796519,178.93,178.88,26.98796519]
[1730156757009,26.98796519,178.93,178.87,26.98796519]
[1730156757520,26.98796519,178.94,178.88,26.98796519]
[1730156757905,23.776884,178.93,178.88,26.98796519]
[1730156758217,23.776884,178.93,178.89,20.0]
[1730156759342,26.98796519,178.92,178.86,26.98796519]
[1730156759636,50.76484919,178.9,178.84,26.98796519]
[1730156759919,50.76484919,178.85,178.79,26.98796519]
[1730156760399,50.76484919,178.85,178.75,12.55059322]
[1730156760601,50.76484919,178.85,178.79,26.98796519]
[1730156760913,26.98796519,178.84,178.78,26.98796519]
[1730156761626,26.98796519,178.84,178.79,26.98796519]
[1730156761920,26.98796519,178.82,178.79,20.0]
[1730156762156,50.76484919,178.83,178.79,20.0]
[1730156762334,23.776884,178.81,178.76,26.98796519]
[1730156762822,26.98796519,178.78,178.72,27.96158138]
[1730156763026,26.98796519,178.76,178.7,26.98796519]
[1730156763223,57.30924919,178.81,178.67,0.97385493]
[1730156763524,57.30924919,178.81,178.75,26.98796519]
[1730156763728,23.776884,178.79,178.75,26.98796519]
[1730156764114,6.5444,178.81,178.78,26.98796519]
[1730156764425,33.53236519,178.81,178.75,26.98796519]
[1730156764804,6.5444,178.81,178.77,26.98796519]
[1730156765104,26.98796519,178.85,178.8,26.98796519]
[1730156765304,26.98796519,178.86,178.8,26.98796519]
[1730156765519,26.98796519,178.85,178.79,26.98796519]
[1730156765848,26.98796519,178.84,178.78,26.98796519]
[1730156766179,49.76996519,178.87,178.82,26.98796519]
[1730156766430,22.782,178.87,178.84,26.98796519]
[1730156766629,16.1597,178.87,178.85,26.98796519]
[1730156766927,16.1597,178.87,178.83,26.98796519]
[1730156767298,16.1597,178.87,178.82,26.98796519]
[1730156767529,26.98796519,178.86,178.8,26.98796519]
[1730156767727,23.776884,178.85,178.8,26.98796519]
[1730156768137,23.776884,178.85,178.81,26.98796519]
[1730156768345,16.1597,178.87,178.84,26.98796519]
[1730156768740,6.6223,178.91,178.86,26.98796519]
[1730156770044,6.6223,178.91,178.88,26.98796519]
[1730156771536,6.6223,178.91,178.87,20.0]
[1730156772434,6.6223,178.91,178.87,46.98796519]
[1730156772634,23.776884,178.91,178.87,46.98796519]
[1730156772855,23.776884,178.91,178.87,26.98796519]
[1730156773043,33.61026519,178.96,178.9,26.98796519]
[1730156773246,6.6223,178.96,178.91,26.98796519]
[1730156773483,15.5912,178.97,178.95,26.98796519]
[1730156773766,0.610765,178.99,178.95,26.98796519]
[1730156773944,0.610765,178.99,178.88,20.0]
[1730156773945,0.610765,178.99,178.96,26.98796519]
[1730156774273,27.59873019,178.99,178.93,26.98796519]
[1730156774445,27.59873019,178.99,178.94,20.0]
[1730156774832,33.18563019,178.99,178.94,20.0]
[1730156775143,23.776884,178.98,178.94,20.0]
[1730156775346,23.776884,178.98,178.96,26.98796519]
[1730156775545,23.776884,178.98,178.85,20.1]
[1730156775739,23.776884,178.98,178.94,20.0]
[1730156776438,23.776884,178.98,178.95,26.98796519]
[1730156777238,0.610765,178.99,178.96,26.98796519]
[1730156778351,0.610765,178.99,178.95,26.98796519]
[1730156778552,0.610765,178.99,178.94,26.98796519]
[1730156778863,27.59873019,178.99,178.94,26.98796519]
[1730156779057,50.76484919,178.98,178.94,20.0]
[1730156779434,23.776884,178.98,178.94,46.98796519]
[1730156780257,50.76484919,178.98,178.94,20.0]
[1730156780459,56.35204919,178.98,178.94,20.0]
[1730156780839,23.776884,178.98,178.94,26.98796519]
[1730156781535,23.776884,178.98,178.94,20.0]
[1730156782057,23.776884,178.98,178.93,26.98796519]
[1730156782770,29.364184,178.98,178.93,26.98796519]
[1730156783447,29.364184,178.98,178.94,26.98796519]
[1730156785659,29.364184,178.98,178.93,26.98796519]
[1730156786361,56.35214919,178.98,178.92,26.98796519]
[1730156786748,26.98796519,178.97,178.92,26.98796519]
[1730156786954,56.35214919,178.98,178.92,26.98796519]
[1730156787256,29.364184,178.98,178.93,26.98796519]
[1730156788345,56.35214919,178.98,178.92,26.98796519]
[1730156788668,50.76484919,178.96,178.9,26.98796519]
[1730156789267,26.98796519,178.94,178.88,26.98796519]
[1730156789440,15.0144,178.93,178.9,26.98796519]
[1730156789639,15.0144,178.93,178.91,26.98796519]
[1730156789859,23.776884,178.95,178.92,26.98796519]
[1730156790063,23.776884,178.95,178.93,26.98796519]
[1730156790264,0.610765,178.99,178.95,20.0]
[1730156790441,0.610765,178.99,178.98,16.86941975]
[1730156790841,0.610765,178.99,178.96,16.86941975]
[1730156792262,0.610765,178.99,178.97,16.86941975]
[1730156794071,17.48018475,178.99,178.94,16.86941975]
[1730156794256,23.776884,178.98,178.94,16.86941975]
[1730156794862,23.776884,178.98,178.93,16.86941975]
[1730156795149,40.64630375,178.96,178.9,16.86941975]
[1730156795362,6.197665,178.99,178.93,16.86941975]
[1730156795363,23.776884,178.97,178.93,16.86941975]
[1730156795752,23.776884,178.97,178.92,16.86941975]
[1730156795952,40.64630375,178.97,178.91,16.86941975]
[1730156796752,46.23390375,178.97,178.91,16.86941975]
[1730156797456,16.86941975,178.95,178.9,16.86941975]
[1730156798567,23.776884,178.95,178.91,16.86941975]
[1730156799076,23.776884,178.96,178.91,16.86941975]
[1730156800081,23.776884,178.96,178.92,16.86941975]
[1730156802068,16.86941975,178.98,178.95,16.86941975]
[1730156802069,23.776884,178.98,178.95,16.86941975]
[1730156802245,23.776884,178.98,178.96,16.86941975]
[1730156802450,23.776884,178.98,178.95,16.86941975]
[1730156802652,23.776884,178.98,178.94,16.86941975]
[1730156803058,40.64630375,178.98,178.93,16.86941975]
[1730156805154,40.64630375,178.94,178.88,16.86941975]
[1730156805984,40.64630375,178.92,178.86,16.86941975]
[1730156806354,23.776884,178.92,178.87,16.86941975]
[1730156806554,23.776884,178.92,178.88,16.86941975]
[1730156807083,16.86941975,178.94,178.88,16.86941975]
[1730156807084,23.776884,178.93,178.88,16.86941975]
[1730156807456,46.23510375,178.93,178.87,16.86941975]
[1730156809657,40.64630375,178.93,178.88,16.86941975]
[1730156809978,0.610765,178.99,178.92,16.86941975]
[1730156810153,0.610765,178.99,178.95,16.86941975]
[1730156810570,0.610765,178.99,178.92,16.86941975]
[1730156810571,16.86941975,178.98,178.92,16.86941975]
[1730156811196,0.610765,178.99,178.95,16.86941975]
[1730156813079,0.610765,178.99,178.94,16.86941975]
[1730156813784,0.610765,178.99,178.95,16.86941975]
[1730156813965,0.610765,178.99,178.97,16.86941975]
[1730156815177,40.64630375,178.98,178.88,16.86941975]
[1730156815349,16.86941975,178.94,178.83,16.96941975]
[1730156815555,16.86941975,178.97,178.91,16.86941975]
[1730156817673,16.86941975,178.93,178.87,16.86941975]
[1730156817871,16.86941975,178.93,178.88,20.0]
[1730156818077,16.86941975,178.97,178.91,16.86941975]
[1730156818768,40.64630375,178.98,178.92,16.86941975]
[1730156819378,16.86941975,178.97,178.91,16.86941975]
[1730156819688,22.45691975,178.97,178.91,16.86941975]
[1730156820066,16.86941975,178.93,178.87,16.86941975]
[1730156820968,16.86941975,178.91,178.85,16.86941975]
[1730156821159,16.86941975,178.89,178.83,16.86941975]
[1730156821358,16.86941975,178.86,178.8,17.84218104]
[1730156821579,16.86941975,178.85,178.79,16.86941975]
[1730156821888,16.86941975,178.85,178.8,16.86941975]
[1730156822658,16.86941975,178.84,178.78,16.86941975]
[1730156822969,16.86941975,178.84,178.79,20.0]
[1730156823281,22.98041975,178.92,178.75,15.54426362]
[1730156823282,16.86941975,178.82,178.76,16.86941975]
[1730156823586,5.5914,178.85,178.76,16.86941975]
[1730156823587,16.86941975,178.81,178.76,16.86941975]
[1730156824160,5.5914,178.85,178.74,6.3615]
[1730156824161,16.86941975,178.8,178.74,16.86941975]
[1730156824360,16.86941975,178.79,178.73,16.86941975]
[1730156824784,16.86941975,178.76,178.71,16.86941975]
[1730156824973,16.86941975,178.75,178.7,16.86941975]
[1730156825166,16.86941975,178.75,178.69,16.86941975]
[1730156825480,16.86941975,178.77,178.72,16.86941975]
[1730156825680,11.42084013,178.82,178.76,16.86941975]
[1730156825681,16.86941975,178.81,178.76,16.86941975]
[1730156825986,16.86941975,178.83,178.77,16.86941975]
[1730156826602,27.05188579,178.85,178.8,47.05188579]
[1730156827685,27.05188579,178.85,178.81,2.18007663]
[1730156827880,27.05188579,178.85,178.8,20.0]
[1730156828179,27.05188579,178.85,178.74,44.99058579]
[1730156828180,27.05188579,178.83,178.78,20.0]
[1730156828388,27.05188579,178.83,178.78,27.05188579]
[1730156828567,27.05188579,178.83,178.77,27.05188579]
[1730156828760,27.05188579,178.83,178.78,20.0]
[1730156828967,27.05188579,178.85,178.8,27.05188579]
[1730156829161,0.1,178.94,178.78,20.0]
[1730156829162,27.05188579,178.88,178.82,27.05188579]
[1730156829374,43.08768579,178.9,178.84,27.05188579]
[1730156829573,43.08768579,178.9,178.85,20.0]
[1730156830063,43.08768579,178.9,178.84,27.05188579]
[1730156830962,27.05188579,178.87,178.83,20.0]
[1730156831166,27.05188579,178.84,178.79,27.05188579]
[1730156831476,27.05188579,178.85,178.79,47.05188579]
[1730156831782,27.05188579,178.84,178.79,27.05188579]
[1730156832563,50.82876979,178.86,178.8,27.05188579]
[1730156832781,27.05188579,178.85,178.8,27.05188579]
[1730156833084,27.05188579,178.85,178.81,20.0]
[1730156833389,27.05188579,178.84,178.8,20.0]
[1730156833580,27.05188579,178.84,178.79,20.0]
[1730156834784,27.05188579,178.84,178.79,27.05188579]
[1730156834959,27.05188579,178.84,178.8,20.0]
[1730156835584,27.05188579,178.84,178.78,27.05188579]
[1730156835789,27.05188579,178.81,178.76,27.05188579]
[1730156836081,27.05188579,178.78,178.73,27.05188579]
[1730156836258,27.05188579,178.78,178.72,27.05188579]
[1730156836665,27.05188579,178.77,178.71,27.05188579]
[1730156837189,43.60958579,178.83,178.72,27.05188579]
[1730156837190,27.05188579,178.78,178.72,27.05188579]
[1730156837390,27.05188579,178.78,178.73,27.05188579]
[1730156837898,27.05188579,178.81,178.75,27.05188579]
[1730156838069,27.05188579,178.81,178.76,47.05188579]
[1730156838386,43.60958579,178.83,178.77,27.05188579]
[1730156838584,6.0456,178.84,178.8,27.05188579]
[1730156838768,16.5577,178.87,178.82,27.05188579]
[1730156838973,16.5577,178.87,178.83,27.05188579]
[1730156839170,27.05188579,178.88,178.82,27.05188579]
[1730156840492,27.05188579,178.89,178.83,27.05188579]
[1730156840989,27.05188579,178.88,178.82,27.05188579]
[1730156841893,27.05188579,178.9,178.84,27.05188579]
[1730156842187,23.776884,178.9,178.85,27.05188579]
[1730156842390,32.64148579,178.91,178.85,27.05188579]
[1730156842391,27.05188579,178.91,178.85,27.05188579]
[1730156843093,27.05188579,178.9,178.85,20.0]
[1730156843478,27.05188579,178.9,178.85,47.05188579]
[1730156844175,27.05188579,178.9,178.85,20.0]
[1730156844374,27.05188579,178.9,178.85,47.05188579]
[1730156844777,27.05188579,178.9,178.84,27.05188579]
[1730156844982,27.05188579,178.9,178.85,20.0]
[1730156847296,32.64168579,178.9,178.84,27.05188579]
[1730156847487,27.05188579,178.89,178.84,27.05188579]
[1730156848375,27.05188579,178.9,178.84,27.05188579]
[1730156849177,27.05188579,178.9,178.85,27.05188579]
[1730156849775,27.05188579,178.88,178.77,20.0]
[1730156850112,5.5894,178.91,178.85,27.05188579]
[1730156850113,32.64128579,178.91,178.85,27.05188579]
[1730156850600,22.6033,178.92,178.89,27.05188579]
[1730156850601,16.5577,178.92,178.89,27.05188579]
[1730156851099,16.5577,178.92,178.88,27.05188579]
[1730156851395,16.5577,178.92,178.81,17.7653]
[1730156851396,43.60958579,178.92,178.86,27.05188579]
[1730156851605,27.05188579,178.89,178.84,27.05188579]
[1730156851803,27.05188579,178.88,178.82,27.05188579]
[1730156852009,27.05188579,178.89,178.83,47.05188579]
[1730156852296,27.05188579,178.88,178.83,47.05188579]
[1730156852499,16.89749015,178.89,178.83,16.89749015]
[1730156852715,16.89749015,178.89,178.84,20.0]
[1730156854406,22.48739015,178.9,178.85,16.89749015]
[1730156855201,33.45519015,178.92,178.87,16.89749015]
[1730156855413,22.147,178.92,178.88,16.89749015]
[1730156856399,16.5577,178.92,178.88,16.89749015]
[1730156856998,16.5577,178.92,178.87,16.89749015]
[1730156859298,22.48599015,178.94,178.88,16.89749015]
[1730156859492,22.48599015,178.94,178.89,20.0]
[1730156859790,5.5885,178.94,178.89,36.89749015]
[1730156860390,22.48599015,178.94,178.89,20.0]
[1730156860707,22.48599015,178.94,178.81,0.1]
[1730156860708,16.89749015,178.91,178.86,16.89749015]
[1730156860910,16.89749015,178.91,178.86,20.0]
[1730156861087,16.89749015,178.91,178.86,36.89749015]
[1730156861893,16.89749015,178.92,178.86,36.89749015]
[1730156862211,46.26317415,178.93,178.87,16.89749015]
[1730156862701,29.365684,178.93,178.87,16.89749015]
[1730156862908,46.26317415,178.93,178.87,16.89749015]
[1730156863099,16.89749015,178.92,178.86,16.89749015]
[1730156863304,29.365684,178.93,178.86,16.89749015]
[1730156863305,16.89749015,178.91,178.86,16.89749015]
[1730156863503,16.89749015,178.9,178.84,16.89749015]
[1730156863901,16.89749015,178.91,178.85,16.89749015]
[1730156864802,16.89749015,178.91,178.86,16.89749015]
[1730156865003,22.48689015,178.91,178.86,16.89749015]
[1730156865211,40.67437415,178.93,178.87,16.89749015]
[1730156865403,23.776884,178.93,178.89,16.89749015]
[1730156865917,5.5882,178.95,178.9,16.89749015]
[1730156866223,15.3296,178.96,178.94,16.89749015]
[1730156866386,0.610765,178.99,178.94,16.89749015]
[1730156866592,0.610765,178.99,178.95,16.89749015]
[1730156866792,0.610765,178.99,178.86,6.2881]
[1730156866793,17.50825515,178.99,178.94,16.89749015]
[1730156867089,17.50825515,178.99,178.93,16.89749015]
[1730156867494,16.89749015,178.96,178.91,16.89749015]
[1730156868312,40.67437415,178.97,178.91,16.89749015]
[1730156868701,46.26207415,178.97,178.91,16.89749015]
[1730156869015,46.26207415,178.97,178.86,6.0881]
[1730156869016,16.89749015,178.95,178.9,16.89749015]
[1730156869415,16.89749015,178.96,178.9,16.89749015]
[1730156869997,22.48539015,178.96,178.9,16.89749015]
[1730156873422,16.89749015,178.94,178.88,16.89749015]
[1730156873598,16.89749015,178.93,178.87,16.89749015]
[1730156875022,16.89749015,178.93,178.88,20.0]
[1730156875322,16.89749015,178.92,178.87,20.0]
[1730156877421,22.48659015,178.92,178.87,20.0]
[1730156877616,16.89749015,178.9,178.84,16.89749015]
[1730156878001,40.67437415,178.91,178.85,16.89749015]
[1730156879218,46.26377415,178.91,178.85,16.89749015]
[1730156879521,46.26377415,178.91,178.86,16.89749015]
[1730156879522,29.366284,178.91,178.86,16.89749015]
[1730156880618,16.89749015,178.89,178.84,20.0]
[1730156880821,16.89749015,178.9,178.84,36.89749015]
[1730156881015,22.5811,178.98,178.89,16.89749015]
[1730156881219,16.89749015,178.97,178.91,16.89749015]
[1730156881601,39.47859015,178.98,178.93,16.89749015]
[1730156882099,39.47859015,178.98,178.92,16.89749015]
[1730156882319,16.89749015,178.97,178.92,16.89749015]
[1730156882629,22.48509015,178.97,178.92,16.89749015]
[1730156882829,23.776884,178.96,178.92,16.89749015]
[1730156883014,39.47859015,178.98,178.92,16.89749015]
[1730156883319,22.5811,178.98,178.95,16.89749015]
[1730156883501,22.5811,178.98,178.96,16.89749015]
[1730156883704,22.5811,178.98,178.95,16.89749015]
[1730156884103,0.610765,178.99,178.96,16.89749015]
[1730156884312,0.610765,178.99,178.94,16.89749015]
[1730156885016,0.610765,178.99,178.96,16.89749015]
[1730156886109,0.610765,178.99,178.95,16.89749015]
[1730156886825,6.197665,178.99,178.94,16.89749015]
[1730156887326,6.197665,178.99,178.95,16.89749015]
[1730156887525,0.610765,178.99,178.95,16.89749015]
[1730156889025,0.610765,178.99,178.96,16.89749015]
[1730156889222,0.610765,178.99,178.98,36.89749015]
[1730156893926,0.610765,178.99,178.98,39.19905919]
[1730156894232,0.610765,178.99,178.98,36.89749015]
[1730156895317,16.1112,179.11,179.01,20.0]
[1730156895520,16.1112,179.11,179.07,16.89749015]
[1730156895923,16.1112,179.11,179.06,16.89749015]
[1730156896122,33.00869015,179.11,179.05,16.89749015]
[1730156896429,16.1112,179.11,179.07,20.0]
[1730156896733,16.1112,179.11,179.07,36.89749015]
[1730156896943,16.1112,179.11,179.08,16.89749015]
[1730156897106,6.6016,179.12,179.08,16.89749015]
[1730156897816,6.6016,179.12,179.07,16.89749015]
[1730156899006,16.89749015,179.1,179.04,16.89749015]
[1730156899237,16.89749015,179.09,179.04,16.89749015]
[1730156899436,16.89749015,179.08,179.02,16.89749015]
[1730156899612,16.89749015,179.1,179.04,16.89749015]
[1730156899934,12.1844,179.12,179.07,16.89749015]
[1730156900132,6.6016,179.12,179.08,16.89749015]
[1730156900519,22.71833675,179.14,179.09,16.89749015]
[1730156900717,5.8208466,179.14,179.1,16.89749015]
[1730156901033,16.1112,179.15,179.1,16.89749015]
[1730156901034,38.59059015,179.15,179.1,16.89749015]
[1730156901836,38.59059015,179.15,179.09,16.89749015]
[1730156902133,38.59059015,179.15,179.07,36.89749015]
[1730156902134,16.89749015,179.12,179.07,36.89749015]
[1730156902316,21.6931,179.15,179.08,16.89749015]
[1730156902515,40.67437415,179.14,179.09,20.0]
[1730156902722,23.776884,179.14,179.09,36.89749015]
[1730156902915,16.89749015,179.13,179.09,20.0]
[1730156903116,22.47999015,179.13,179.09,20.0]
[1730156903314,22.47999015,179.13,179.08,16.89749015]
[1730156903523,16.89749015,179.12,179.07,20.0]
[1730156903921,16.89749015,179.09,178.96,18.1387]
[1730156904114,16.89749015,179.08,179.03,16.89749015]
[1730156904331,16.89749015,179.09,179.03,16.89749015]
[1730156905038,22.48139015,179.09,179.03,16.89749015]
[1730156905240,5.5839,179.09,179.02,16.89749015]
[1730156905417,5.5839,179.09,179.05,16.89749015]
[1730156905619,5.5839,179.09,178.97,0.1]
[1730156905620,5.5839,179.09,179.04,16.89749015]
[1730156905828,22.48139015,179.09,179.04,16.89749015]
[1730156906033,16.89749015,179.1,179.05,16.89749015]
[1730156906217,40.67437415,179.12,179.07,16.89749015]
[1730156906422,16.89749015,179.11,179.06,16.89749015]
[1730156906742,46.25717415,179.12,179.06,16.89749015]
[1730156907739,16.89749015,179.12,179.06,16.89749015]
[1730156907936,16.89749015,179.13,179.07,16.89749015]
[1730156908544,16.89749015,179.12,179.06,16.89749015]
[1730156908920,16.89749015,179.1,179.06,20.0]
[1730156909121,16.89749015,179.09,179.06,20.0]
[1730156909523,16.89749015,179.09,179.04,20.0]
[1730156909836,16.89749015,179.1,179.05,36.89749015]
[1730156910036,16.89749015,179.12,179.06,36.89749015]
[1730156911144,22.48049015,179.12,179.06,36.89749015]
[1730156911315,22.48049015,179.12,179.07,16.89749015]
[1730156911638,46.25687415,179.13,179.08,16.89749015]
[1730156912354,22.47999015,179.13,179.08,16.89749015]
[1730156913941,16.89749015,179.11,179.06,20.0]
[1730156914239,16.89749015,179.11,179.02,20.0]
[1730156914240,16.89749015,179.07,179.02,16.89749015]
[1730156914439,23.776884,179.12,179.03,16.89749015]
[1730156914644,16.89749015,179.09,179.04,16.89749015]
[1730156915030,16.89749015,179.09,179.03,16.89749015]
[1730156915351,16.89749015,179.08,179.02,16.89749015]
[1730156915641,16.89749015,179.07,179.02,16.89749015]
[1730156916250,22.48129015,179.09,179.03,16.89749015]
[1730156916430,16.89749015,179.09,179.03,16.89749015]
[1730156918038,22.48139015,179.09,179.03,16.89749015]
[1730156919816,5.5832,179.11,179.06,16.89749015]
[1730156920022,46.25717415,179.12,179.06,16.89749015]
[1730156920222,22.48029015,179.12,179.06,16.89749015]
[1730156923043,16.89749015,179.11,179.05,16.89749015]
[1730156923543,16.89749015,179.11,179.06,16.89749015]
[1730156924221,5.5828,179.12,179.06,16.89749015]
[1730156924427,5.5825,179.14,179.09,16.89749015]
[1730156925160,21.6931,179.15,179.1,16.89749015]
[1730156925321,16.1112,179.15,179.11,16.89749015]
[1730156925528,0.610765,179.17,179.14,16.89749015]
[1730156925728,0.610765,179.17,179.15,16.89749015]
[1730156926638,0.610765,179.17,179.16,16.89749015]
[1730156928924,0.610765,179.17,179.15,16.89749015]
[1730156929181,0.610765,179.17,179.16,16.89749015]
[1730156931635,0.610765,179.17,179.15,16.89749015]
[1730156932256,6.192165,179.17,179.14,20.0]
[1730156932555,6.192165,179.17,179.13,20.0]
[1730156932858,6.192165,179.17,179.13,36.89749015]
[1730156933741,6.192165,179.17,179.04,6.4478]
[1730156933948,6.192165,179.17,179.12,16.89749015]
[1730156934139,23.08965515,179.17,179.11,16.89749015]
[1730156934346,16.89749015,179.13,179.04,3.86147527]
[1730156934545,16.89749015,179.15,179.1,16.89749015]
[1730156935062,16.89749015,179.14,179.08,16.89749015]
[1730156935232,22.47989015,179.14,179.09,16.89749015]
[1730156936282,16.89749015,179.15,179.1,16.89749015]
[1730156936655,5.5822,179.14,179.1,16.89749015]
[1730156937748,16.89749015,179.15,179.1,16.89749015]
[1730156939270,29.358584,179.16,179.09,20.0]
[1730156939271,22.47969015,179.14,179.09,20.0]
[1730156940759,22.47969015,179.14,179.09,36.89749015]
[1730156940760,23.776884,179.14,179.09,36.89749015]
[1730156940958,40.67437415,179.14,179.09,36.89749015]
[1730156943161,23.776884,179.14,179.09,36.89749015]
[1730156943658,40.67437415,179.14,179.09,36.89749015]
[1730156943860,40.67437415,179.14,179.09,20.0]
[1730156944055,16.89749015,179.1,179.04,16.89749015]
[1730156944251,16.89749015,179.09,179.03,16.89749015]
[1730156944452,34.56502356,179.11,179.05,10.78813956]
[1730156944952,26.88653956,179.12,179.07,10.78813956]
[1730156945366,26.88653956,179.12,179.06,10.78813956]
[1730156945747,10.78813956,179.11,179.05,10.78813956]
[1730156946252,26.88653956,179.12,179.06,10.78813956]
[1730156946456,26.88653956,179.12,179.07,20.0]
[1730156946758,26.88653956,179.12,179.07,30.78813956]
[1730156948576,16.0984,179.12,179.07,30.78813956]
[1730156948762,26.88653956,179.12,179.07,30.78813956]
[1730156948946,16.0984,179.12,179.07,30.78813956]
[1730156949146,16.0984,179.12,179.09,10.78813956]
[1730156949365,6.5969,179.13,179.1,10.78813956]
[1730156949941,16.0822,179.16,179.12,10.78813956]
[1730156950183,10.78813956,179.13,179.06,10.78813956]